Cogmind - Beta 15 @@@ ROGUE MODE // 2025.10.10 @ 22:27:23 Player: Oertel Result: Self-destructed Performance ------------- Evolutions (1) 500 Regions Visited (3) 600 Robots Destroyed (32) 160 Value Destroyed (610) 610 Prototype IDs (0) 0 Alien Tech Used (0) 0 Bonus (0) 0 TOTAL SCORE: 1870 Bonus ------- None Cogmind --------- Core Integrity 278/400 Matter 300/300 Energy 100/100 System Corruption 0% Temperature Cool (0) Movement Core (200) Ox3 Location -9/Materials Parts ------- > --- POWER (1) -------- (None) > --- PROPULSION (2) --- (None) > --- UTILITY (4) ------ Medium Storage Unit Signal Interpreter > --- WEAPON (2) ------- (None) > --- INVENTORY (10) --- Ion Engine Light Ion Engine Light Ion Engine Light Treads Light Treads Light Treads Aluminum Leg Small Storage Unit High-capacity Matter Pod (200) Light Assault Rifle Peak State ------------ > --- POWER ------------ Ion Engine > --- PROPULSION ------- Aluminum Leg Aluminum Leg > --- UTILITY ---------- Medium Storage Unit Signal Interpreter > --- WEAPON ----------- Assault Rifle Light Assault Rifle > --- INVENTORY -------- Ion Engine Light Ion Engine Light Treads Light Treads Light Treads Small Storage Unit High-capacity Matter Pod Weight Redist. System Grenade Launcher [Rating: 8] Favorites ----------- Power Ion Engine Engine Ion Engine Propulsion Aluminum Leg Leg Aluminum Leg Utility Signal Interpreter Storage Medium Storage Unit Processor Signal Interpreter Protection Light Armor Plating Weapon Assault Rifle Energy Gun Medium Laser Ballistic Gun Assault Rifle Launcher Grenade Launcher Build | -11 -10 -10 -9 ------- Run | Yrd Mat Min Mat Slots Evolved 2 | . . . 2 Power . | . . . . Propulsion . | . . . . Utility 2 | . . . 2 Weapon . | . . . . Parts Attached 17 | 6 7 4 . Power 2 | 1 . 1 . Engine 2 | 1 . 1 . Core . | . . . . Reactor . | . . . . Propulsion 5 | 2 2 1 . Treads . | . . . . Leg 5 | 2 2 1 . Wheel . | . . . . Hover . | . . . . Flight . | . . . . Utility 4 | 1 3 . . Device . | . . . . Storage 2 | 1 1 . . Processor 1 | . 1 . . Hackware . | . . . . Protection 1 | . 1 . . Artifact . | . . . . Weapon 6 | 2 2 2 . Energy Gun 1 | . 1 . . Energy Cannon . | . . . . Ballistic Gun 4 | 2 1 1 . Ballistic Cannon . | . . . . Launcher 1 | . . 1 . Special Weapon . | . . . . Impact Weapon . | . . . . Slashing Weapon . | . . . . Piercing Weapon . | . . . . Special Melee Weapon . | . . . . Unidentified Prototypes . | . . . . Parts Lost 11 | . 1 5 5 Power 2 | . . 1 1 Propulsion 3 | . . 1 2 Utility 1 | . 1 . . Weapon 5 | . . 3 2 Highest Loss Streak 5 | . 1 3 5 To Critical Strikes . | . . . . Average Backups 8 | 2 8 9 9 Power 1 | . 1 2 2 Propulsion 2 | 1 2 3 3 Utility 2 | . 2 2 1 Weapon 1 | . 1 1 1 Tool/Special . | . . . . Unused Backups 8 | . . 1 7 Power 2 | . . . 2 Propulsion 4 | . . . 4 Utility 2 | . . 1 1 Weapon . | . . . . Tool/Special . | . . . . Average Slot Usage (%) 95 | . 97 97 73 Engine 13 | . 14 13 9 Leg 27 | . 27 26 21 Storage 13 | . 14 14 9 Processor 10 | . 9 14 11 Protection 2 | . 3 . . Energy Gun 8 | . 7 12 . Ballistic Gun 18 | . 19 14 21 Peak Build Rating 8 | 6 8 8 8 Average Rating 7 | 4 7 7 7 On Entrance 5 | . 6 8 8 Naked Turns . | . . . . Heaviest Build 19 | 13 19 19 15 Greatest Support 20 | 20 20 20 20 Greatest Overweight (x) 1 | 1 1 1 1 Average Overweight (x) . | . . . . Largest Inventory Capacity 10 | 8 10 10 10 Average Capacity 9 | 6 9 10 9 Most Carried 10 | 3 10 10 10 Average Carried 8 | 2 8 9 9 Final Capacity 10 | 8 10 10 10 Final Carried 10 | 3 10 10 10 Class Distribution -------------------- 91% | Mutant 8% | Scavenger-Mutant Dominant Class ---------------- Mutant | -10/Materials Mutant | -10/Mines Scavenger-Mutant | -9/Materials Resources | -11 -10 -10 -9 ----------- Run | Yrd Mat Min Mat Matter Collected 978 | 175 609 175 19 Remotely . | . . . . Salvage Created 917 | . 537 306 74 Parts 63 | . 35 23 5 Haulers Intercepted 2 | . 2 . . Recyclers Shooed . | . . . . Parts Field Recycled . | . . . . Retrieved Matter . | . . . . Parts Self-Destructed . | . . . . Prevented . | . . . . Kills | -11 -10 -10 -9 ------- Run | Yrd Mat Min Mat Combat Hostiles Destroyed 22 | . 9 10 3 Guns 21 | . 9 9 3 AOE 1 | . . 1 . Classes Destroyed 7 | . 6 1 . Worker 2 | . 1 1 . Tunneler 2 | . . 2 . Hauler 2 | . 2 . . Recycler 1 | . 1 . . Watcher 3 | . 3 . . Swarmer 11 | . 3 6 2 Grunt 11 | . 6 4 1 Best Kill Streak 5 | . 5 3 3 Combat Bots Only 3 | . 3 3 3 Max Kills in Single Turn 2 | . 1 2 1 Gunslinging . | . . . . Exploded 1 | . . 1 . Melee . | . . . . Uniques/NPCs Destroyed . | . . . . Combat | -11 -10 -10 -9 -------- Run | Yrd Mat Min Mat Hostile Shots Fired 171 | . 51 66 54 Missed 45 | . 13 17 15 Hits 126 | . 38 49 39 Projectile 126 | . 38 49 39 Critical Strikes 3 | . . 3 . Damage Taken 1342 | . 427 557 358 Core 301 | . 79 100 122 Absorbed by Shields . | . . . . Regen/Repaired (Parts) 98 | . . . 98 Core Remaining (%) 64 | 100 . 28 . Volleys Fired 123 | . 76 30 17 Largest 2 | . 2 2 2 Hottest 80 | . 70 80 40 Shots Fired 221 | . 134 59 28 Gun 218 | . 134 56 28 Cannon . | . . . . Launcher 3 | . . 3 . Special . | . . . . Kinetic 175 | . 113 34 28 Thermal 43 | . 21 22 . Explosive 3 | . . 3 . Electromagnetic . | . . . . Robot Hit Streak 11 | . 11 7 8 Robot Miss Streak 5 | . 5 4 3 Penetration Max . | . . . . Secondary Targets 3 | . 2 1 . Max Gunslinging Chain 1 | . 1 1 . Shots Hit Robots 131 | . 81 34 16 Core Hits 57 | . 29 22 6 Critical Kills . | . . . . Critical Parts Destroyed . | . . . . Critical Strikes 2 | . 1 1 . Burn 2 | . 1 1 . Melee Attacks . | . . . . Impact . | . . . . Slashing . | . . . . Piercing . | . . . . Sneak Attacks . | . . . . Combat Hostiles . | . . . . Follow-up Attacks . | . . . . Damage Inflicted 1608 | . 914 539 155 Guns 1444 | . 890 403 151 Cannons . | . . . . Explosions 133 | . . 133 . Melee . | . . . . Ramming 31 | . 24 3 4 Kinetic 1145 | . 776 218 151 Thermal 299 | . 114 185 . Explosive 133 | . . 133 . Electromagnetic . | . . . . Impact . | . . . . Slashing . | . . . . Piercing . | . . . . Highest Corruption 4 | . 4 4 . Average Corruption 3 | . 3 4 . Corruption Purged . | . . . . Corruption Blocked . | . . . . Effects 13 | . 2 11 . Matter Fused 4 | . . 4 . Heat Flow Errors 2 | . . 2 . Energy Discharges 2 | . . 2 . Parts Rejected 1 | . . 1 . Parts Fused 1 | . 1 . . Data Loss (minor) 2 | . 1 1 . Weapon Failures 1 | . . 1 . Overload Shots . | . . . . Overflow Damage . | . . . . Projectiles . | . . . . Explosions . | . . . . Melee . | . . . . Knockbacks . | . . . . Impact . | . . . . Kinetic . | . . . . Secondary . | . . . . Self-Inflicted Damage 30 | . . 30 . Shots 1 | . . 1 . Rammed . | . . . . Targets Rammed 6 | . 4 1 1 Kicked 6 | . 4 1 1 Crushed . | . . . . Highest Temperature 278 | . 54 278 3 Average Temperature 57 | . 15 108 3 Received Heat Transfer 504 | . 216 216 72 Siege Activations . | . . . . Martial Activations . | . . . . Shielding Activations . | . . . . Robots Disrupted . | . . . . Combat Hostiles . | . . . . Robots Corrupted . | . . . . Combat Hostiles . | . . . . Parts Fried . | . . . . Impact Corruptions . | . . . . Robots Melted . | . . . . Combat Hostiles . | . . . . Parts Melted 2 | . . 2 . Heat Transferred 1036 | . 407 629 . Parts Sabotaged . | . . . . Parts Stolen . | . . . . Parts Stripped . | . . . . Power Chain Reactions . | . . . . Alert | -11 -10 -10 -9 ------- Run | Yrd Mat Min Mat Maximum Alert Level . | . . . . Low Security (%) 100 | 100 100 100 100 Level 1 . | . . . . Level 2 . | . . . . Level 3 . | . . . . Level 4 . | . . . . Level 5 . | . . . . High Security . | . . . . Max Security . | . . . . Peak Influence 102 | . 78 102 45 Initial 17 | . . 13 17 Average 20 | . 12 57 7 Influence Increases 667 | . 271 289 107 Destroy 0b10 Robot/C 440 | . 180 200 60 Destroy 0b10 Robot/NC 50 | . 35 15 . Destroy Leader 100 | . 40 40 20 Successful Hack 12 | . . . 12 Destroy Structure 20 | . 1 19 . Lose Combat Pursuer 45 | . 15 15 15 Influence Decreases 622 | . 237 277 108 Entered New Map 50 | . . 21 29 Time Decay 472 | . 227 206 39 Lost Part 100 | . 10 50 40 Squads Dispatched 1 | . . . 1 Investigation . | . . . . Extermination . | . . . . Reinforcement 1 | . . . 1 Assault . | . . . . Garrison . | . . . . Intercept . | . . . . Searches Triggered . | . . . . Construction Impeded . | . . . . Haulers Reinforced . | . . . . Active Scanning Responses . | . . . . Cargo Convoy Interrupts . | . . . . Stealth | -11 -10 -10 -9 --------- Run | Yrd Mat Min Mat Distress Signals 2 | . 1 . 1 Communications Jammed . | . . . . Distress Signals . | . . . . Times Spotted 42 | . 19 11 12 Peak Tracking Total 8 | . 3 3 8 Tactical Retreats 3 | . 1 1 1 Traps | -11 -10 -10 -9 ------- Run | Yrd Mat Min Mat Traps Triggered 5 | . 5 . . Indirectly . | . . . . Trap Hack Attempts . | . . . . Triggered . | . . . . Disarmed . | . . . . Reprogrammed . | . . . . Reused . | . . . . Traps Extracted . | . . . . Installed . | . . . . Triggered . | . . . . Machines | -11 -10 -10 -9 ---------- Run | Yrd Mat Min Mat Machines Disabled . | . . . . Max in Single Turn . | . . . . Machines Repaired . | . . . . Machines Dismantled . | . . . . Machines Sabotaged . | . . . . Overloaded Fab Kills . | . . . . Hacking | -11 -10 -10 -9 --------- Run | Yrd Mat Min Mat Machines Accessed 3 | . 1 . 2 Terminals 2 | . 1 . 1 Fabricators . | . . . . Repair Stations 1 | . . . 1 Recycling Units . | . . . . Scanalyzers . | . . . . Garrison Access . | . . . . Total Hacks 5 | . 1 . 4 Successful 5 | . 1 . 4 Failed . | . . . . Catastrophic . | . . . . Database Lockouts . | . . . . Manual . | . . . . Terminals 3 | . 1 . 2 Fabricators . | . . . . Repair Stations 2 | . . . 2 Recycling Units . | . . . . Scanalyzers . | . . . . Garrison Access . | . . . . Terminal Hacks 3 | . 1 . 2 Robot Analysis 1 | . . . 1 Locate Traps 1 | . 1 . . Security Status 1 | . . . 1 Fabricator Hacks . | . . . . Repair Station Hacks 2 | . . . 2 Scan Component 1 | . . . 1 Repair 1 | . . . 1 Recycling Unit Hacks . | . . . . Scanalyzer . | . . . . Garrison Access Hacks . | . . . . Unauthorized Hacks . | . . . . Terminals . | . . . . Fabricators . | . . . . Repair Stations . | . . . . Recycling Units . | . . . . Scanalyzers . | . . . . Garrison Access . | . . . . Data Cores Recovered . | . . . . Used . | . . . . Hacking Detections 3 | . 1 . 2 Full Trace Events . | . . . . Feedback Events . | . . . . Feedback Blocked . | . . . . Robot Schematics Acquired . | . . . . Robots Built . | . . . . Authchips . | . . . . Time . | . . . . Total Robot Build Rating . | . . . . Part Schematics Acquired . | . . . . Parts Built . | . . . . Authchips . | . . . . Time . | . . . . Total Part Build Rating . | . . . . Parts Repaired 1 | . . . 1 Time 26 | . . . 26 Parts Recycled . | . . . . Recycled Matter . | . . . . Retrieved Matter . | . . . . Retrieved Components . | . . . . Parts Scanalyzed . | . . . . Part Schematics Acquired . | . . . . Parts Damaged . | . . . . Bothacking | -11 -10 -10 -9 ------------ Run | Yrd Mat Min Mat Used RIF Installer . | . . . . Robots Hacked . | . . . . Non-combat . | . . . . Combat . | . . . . Robot Hacks Applied . | . . . . Relay Couplers Released . | . . . . Fabnet Peak Effective % . | . . . . Robots Rewired . | . . . . Allies Hacked . | . . . . Hacks Repelled . | . . . . Allies | -11 -10 -10 -9 -------- Run | Yrd Mat Min Mat Total Allies . | . . . . Largest Group . | . . . . Highest-Rated Group . | . . . . Highest-Rated Ally . | . . . . Total Orders . | . . . . Ally Attacks . | . . . . Total Damage . | . . . . Kills . | . . . . Allies Corrupted . | . . . . Allies Melted . | . . . . Intel | -11 -10 -10 -9 ------- Run | Yrd Mat Min Mat Active Infowar (turns) . | . . . . Robot Analysis Total 1 | . . . 1 Derelict Logs Recovered . | . . . . Drone Launches . | . . . . Drone Recoveries . | . . . . Exploration | -11 -10 -10 -9 ------------- Run | Yrd Mat Min Mat Turns Passed 2227 | 55 1544 439 189 Spaces Moved 1484 | 40 1087 272 85 Core 9 | 9 . . . Treads . | . . . . Legs 1475 | 31 1087 272 85 Wheels . | . . . . Hover . | . . . . Flight . | . . . . Fastest Speed 50 | 50 120 120 120 Average Speed 120 | 110 120 122 121 Slowest Speed 190 | 120 190 190 190 Overloaded Moves . | . . . . Propulsion Burnouts . | . . . . Robots Hopped . | . . . . Potential Cave-ins . | . . . . Cave-ins Triggered . | . . . . Exploration Rate (%) 32 | 3 73 47 8 Regions Visited 3 Branch Regions 1 Pre-discovered Areas . | . . . . Known Exits Taken 2 | . 1 1 . Unknown Exits Taken 1 | 1 . . . Scrap Searched . | . . . . Spaces Dug . | . . . . Terrain Destroyed 24 | . . 24 . Melee . | . . . . Projectile . | . . . . AOE 24 | . . 24 . Terrain Rammed . | . . . . Walls Destroyed . | . . . . Machines Disabled . | . . . . Actions | -11 -10 -10 -9 --------- Run | Yrd Mat Min Mat Total 1713 | 48 1198 320 147 Wait 56 | . 13 5 38 Move 1481 | 39 1086 271 85 Hop . | . . . . Pick Up 19 | 3 6 5 5 Fast Attach 15 | 6 6 2 1 Attach 5 | . 1 4 . Detach . | . . . . Swap 5 | . 4 1 . Drop 3 | . 2 1 . Fire 123 | . 76 30 17 Melee . | . . . . Ram . | . . . . Kick 6 | . 4 1 1 Crush . | . . . . Escape Stasis . | . . . . Rewire . | . . . . Trap . | . . . . Miscellaneous . | . . . . Route ------- -11/Scrapyard -10/Materials (discovered 3 exits: *Mat x2 / *Min) -10/Mines (discovered 2 exits: *Mat / *Exi) -9/Materials History --------- Turn | Location | Event 2 | -11/Scrapyard | Met Revision 17 12 | -11/Scrapyard | Discovered new exit (range 14) 56 | -11/Scrapyard | Entered Materials 200 | -10/Materials | Discovered new exit (range 12) 301 | -10/Materials | Build established: Mutant 890 | -10/Materials | Discovered new exit (range 11) 908 | -10/Materials | Identified exit to Materials 966 | -10/Materials | Identified exit to Mines 1497 | -10/Materials | Discovered exit to Materials (range 15) 1600 | -10/Materials | Entered Mines 1696 | -10/Mines | Deemed a non-threat by the Exiles lab entrance 1696 | -10/Mines | Discovered new exit (range 5) 1699 | -10/Mines | Identified exit to Exiles 1843 | -10/Mines | Core integrity fell below 50% 1920 | -10/Mines | Discovered exit to Materials (range 13) 1921 | -10/Mines | Found a hidden stash of uninstalled traps 2039 | -10/Mines | Lost 3 parts (1p2w) 2039 | -10/Mines | Entered Materials 2039 | -9/Materials | Evolved 2 slots: Utility x2 2076 | -9/Materials | Repaired Med. Storage Unit 2228 | -9/Materials | Self-destructed Last Messages --------------- while within that blast radius. >>Enumerate(Guards) Retrieving latest reported positions... Security request, restricting to local area... No active security squads found. 02140_ O-16 Technician: "IFF HANDSHAKE FAILED. SECURING TERMINAL." 02147_ ALERT: Hostiles spotted, dispatching reinforcements to Terminal M001. 02191_ W-16 Scout sends out distress signal. 02200_ S-10 Pest destroyed. 02206_ Lgt. Ion Engine destroyed. 02212_ Lgt. Assault Rifle destroyed. 02212_ Aluminum Leg destroyed. 02213_ G-34 Mercenary destroyed. 02217_ Acquired 19 matter. 02219_ K-01 Serf collects debris. 02226_ Aluminum Leg destroyed. 02226_ S-10 Pest destroyed. 02226_ Lgt. Assault Rifle destroyed. Map ----- +----------------------------------------------------+ | ?????????????????????????????????????????????????? | | ?????????????????????????????????????????????????? | | ?????????????????????????????????????????????????? | | ?????????????????????????????????????????????????? | | ?????????????????????????????????????????????????? | | ?????????????????????????????????????????????????? | | ?????????????????????????????????????????????????? | | ?????????????????????????????????????????????????? | | ?????????????????????????????????????????????????? | | ???????????????????? ????????????????????????????? | | ??????????????????? T??????????????????????????? | | ??????????????????? ""??????????????????????????? | | ???????????????????? ??????????????????????????? | | ???????????????????? ! ?????????????????????????? | | ????????????????????# ?????????????????????????? | | ????????????????????# ?????????????????????????? | | ????????????????????# ?????????????????????????? | | ????????????????????+ ?????????????????????????? | | ????????????????????# ?????????????????????????? | | ????????????????????# ?????????????????????????? | | ?????????? ########## ########?????????????????? | | ????????? #?????????????????? | | ????????? #?????????????????? | | ????????? =%* #?????????????????? | | ????????????????########g### #?????????????????? | | ????????????????????# @ # #?????????????????? | | ????????????????????# s = # #?????????????????? | | ????????????????????# """%s# ############??????? | | ????????????????????# """[ # #??????? | | ????????????????????# """ # #??????? | | ????????????????????# g # #??????? | | ????????????????????####+######+######+#####?????? | | ???????????????????????# # #?????? | | ???????????????????????# # #?????? | | ???????????????????????# # #?????? | | ???????????????????????# # """ #?????? | | ???????????????????????#" """ # """ """#?????? | | ???????????????????????#T """ # """ R"#?????? | | ???????????????????????#" """ # """#?????? | | ???????????????????????# # #?????? | | ???????????????????????#####################?????? | | | | | | | | | | | | | | | | | | | +----------------------------------------------------+ Best States ------------- Heat Dissipation 28 Energy Generation 10 Energy Capacity 250 Matter Stores 300 Matter Capacity 300 Sight Range 16 Terrain Scan Density 10 Armor Coverage 150 Evasion (%) 55 Item Schematics ----------------- None Robot Schematics ------------------ None Fabricated ------------ Nothing Repaired ---------- Med. Storage Unit | 60% | -9/Materials Alien Tech Used ----------------- None Achievements -------------- None Challenges ------------ None Game ------ Seed CorruptionTransportBox Manual? 0 Play Time 00:31:19 Cumulative 17.5 hours Start 2025.10.10 @ 21:45:42 End 2025.10.10 @ 22:27:23 Sessions 1 Manual Loads 0 Difficulty Rogue Special Mode None Game No. 11 Rogue 11 Adventurer 0 Explorer 0 Win Type - Total 0 Types 0/0/0/0/0/0/0/0/0/0 Lore% 10 Gallery% 11 Achievement% 16 Wizard Run 0 Options --------- Layout 1 ASCII 0 Keyboard 0 Movement Mouse Keybinds 0 Fullscreen 2 Font 32/Tamsyn Map View 50x35 Zoom Use 0% Tactical HUD 1 Map Filters NONE Filters NONE Steam 1 RUN: 9a237f0d-c44b-4e88-bb93-1217e6c90c1b